bitfinex/quotes_BTCUSD_20240613
["timestamp","ask_amount","ask_price","bid_price","bid_amount"]
[1718269456682,0.00086,67559.0,67558.0,0.42217244]
[1718269457085,0.00086,67559.0,67558.0,0.10246757]
[1718269457257,0.00086,67559.0,67553.0,0.10246757]
[1718269457258,0.01035448,67559.0,67553.0,0.10246757]
[1718269457432,0.00086,67559.0,67552.0,0.000946]
[1718269457639,0.00086,67559.0,67553.0,0.14593911]
[1718269457640,0.0095278,67558.0,67553.0,0.14593911]
[1718269457843,0.0095278,67558.0,67554.0,0.10308062]
[1718269458170,0.0095278,67558.0,67555.0,0.10308062]
[1718269458388,0.0095278,67558.0,67556.0,0.10308062]
[1718269458785,0.0095278,67558.0,67552.0,0.000946]
[1718269458988,0.0095278,67558.0,67553.0,0.14661269]
[1718269459168,0.0095278,67558.0,67552.0,0.000946]
[1718269459169,0.0095278,67558.0,67554.0,0.10372419]
[1718269459376,0.0095278,67558.0,67555.0,0.10372419]
[1718269459898,0.0095278,67558.0,67556.0,0.10372419]
[1718269460242,0.0095278,67558.0,67552.0,0.000946]
[1718269460488,0.1010278,67558.0,67552.0,0.000946]
[1718269460706,0.0715,67555.0,67553.0,0.1466594]
[1718269460980,0.0715,67555.0,67552.0,0.000946]
[1718269460981,0.0915,67555.0,67554.0,0.10376611]
[1718269461189,0.0915,67555.0,67552.0,0.000946]
[1718269461190,0.02,67553.0,67552.0,0.000946]
[1718269461460,0.1689,67553.0,67552.0,0.000946]
[1718269461680,0.17842009,67553.0,67552.0,0.000946]
[1718269462186,0.22745092,67553.0,67552.0,0.000946]
[1718269462406,0.17842009,67553.0,67552.0,0.000946]
[1718269462616,0.22992009,67553.0,67552.0,0.000946]
[1718269462823,0.24992009,67553.0,67552.0,0.000946]
[1718269463665,0.25892009,67553.0,67552.0,0.000946]
[1718269464313,0.24592009,67553.0,67552.0,0.000946]
[1718269467943,0.02552009,67553.0,67552.0,0.000946]
[1718269478593,0.02552009,67553.0,67552.0,0.139046]
[1718269479871,0.01652009,67553.0,67552.0,0.139046]
[1718269480305,0.01752009,67553.0,67552.0,0.139046]
[1718269480511,0.01052009,67553.0,67552.0,0.139046]
[1718269482779,0.01052009,67553.0,67552.0,0.24144816]
[1718269485095,0.001,67553.0,67552.0,0.24144816]
[1718269485300,0.001,67553.0,67552.0,0.28427544]
[1718269485987,0.001,67553.0,67552.0,0.24144816]
[1718269486664,0.001,67553.0,67552.0,0.28427601]
[1718269487525,0.001,67553.0,67552.0,0.24144816]
[1718269487963,0.001,67553.0,67552.0,0.35579677]
[1718269488384,0.001,67553.0,67552.0,0.37573677]
[1718269488596,0.001,67553.0,67552.0,0.64422018]
[1718269491219,0.001,67553.0,67552.0,0.64663589]
[1718269491813,0.001,67553.0,67552.0,0.64917915]
[1718269492701,0.001,67553.0,67552.0,0.64921467]
[1718269493695,0.001,67553.0,67552.0,0.6063303]
[1718269493898,0.001,67553.0,67552.0,0.64921626]
[1718269495876,0.001,67553.0,67552.0,0.57771626]
[1718269496102,0.001,67553.0,67552.0,0.64921626]
[1718269497092,0.001,67553.0,67552.0,0.57771626]
[1718269500415,0.001,67553.0,67552.0,0.59245389]
[1718269501337,0.001,67553.0,67552.0,0.45435389]
[1718269501554,0.001,67553.0,67552.0,0.14738104]
[1718269501829,0.08202463,67553.0,67552.0,0.14738104]
[1718269502055,0.08202463,67553.0,67552.0,0.000946]
[1718269502056,0.22092463,67553.0,67552.0,0.000946]
[1718269502700,0.21992463,67553.0,67552.0,0.000946]
[1718269503170,0.22192463,67553.0,67552.0,0.000946]
[1718269503814,0.21992463,67553.0,67552.0,0.000946]
[1718269504021,0.24492463,67553.0,67552.0,0.000946]
[1718269505726,0.24792463,67553.0,67552.0,0.000946]
[1718269505940,0.42712302,67553.0,67552.0,0.000946]
[1718269507080,0.42212302,67553.0,67552.0,0.000946]
[1718269507515,0.7652225,67553.0,67552.0,0.000946]
[1718269507750,0.7792225,67553.0,67552.0,0.000946]
[1718269507975,0.73612302,67553.0,67552.0,0.000946]
[1718269508186,1.28412958,67553.0,67552.0,0.000946]
[1718269508406,0.02,67539.0,67538.0,0.000946]
[1718269508621,0.37281993,67539.0,67538.0,0.000946]
[1718269508835,0.63461413,67539.0,67538.0,0.000946]
[1718269509052,0.67871549,67539.0,67538.0,0.000946]
[1718269509268,0.72871549,67539.0,67538.0,0.000946]
[1718269509484,0.77769918,67539.0,67538.0,0.000946]
[1718269509692,0.72871549,67539.0,67538.0,0.000946]
[1718269509936,0.48391583,67539.0,67538.0,0.000946]
[1718269510146,0.46233214,67539.0,67538.0,0.000946]
[1718269510364,0.49633214,67539.0,67538.0,0.000946]
[1718269510573,0.26051221,67539.0,67538.0,0.000946]
[1718269510806,0.33201221,67539.0,67538.0,0.000946]
[1718269511010,0.26051221,67539.0,67538.0,0.000946]
[1718269511234,0.30971343,67539.0,67538.0,0.000946]
[1718269511661,0.29571343,67539.0,67538.0,0.000946]
[1718269511899,0.31571343,67539.0,67538.0,0.000946]
[1718269512115,0.30171343,67539.0,67538.0,0.000946]
[1718269512332,0.31571343,67539.0,67538.0,0.000946]
[1718269512562,0.31571343,67539.0,67538.0,0.001446]
[1718269512771,0.30171343,67539.0,67538.0,0.001446]
[1718269513189,0.31571343,67539.0,67538.0,0.001446]
[1718269513403,0.32971343,67539.0,67538.0,0.001446]
[1718269513620,0.31571343,67539.0,67538.0,0.001446]
[1718269513840,0.30171343,67539.0,67538.0,0.001446]
[1718269514043,0.31571343,67539.0,67538.0,0.001446]
[1718269514255,0.32971343,67539.0,67538.0,0.001446]
[1718269515325,0.42483214,67539.0,67538.0,0.001446]
[1718269515769,0.43883214,67539.0,67538.0,0.001446]
[1718269515983,0.42483214,67539.0,67538.0,0.001446]
[1718269516435,0.52483214,67539.0,67538.0,0.001446]
[1718269516660,0.42483214,67539.0,67538.0,0.001446]
[1718269516879,0.50197993,67539.0,67538.0,0.001446]
[1718269517301,0.50197993,67539.0,67538.0,0.000946]
[1718269517755,0.51597993,67539.0,67538.0,0.000946]
[1718269526499,0.61597993,67539.0,67538.0,0.000946]
[1718269526888,0.70677297,67539.0,67538.0,0.000946]
[1718269527434,0.69277297,67539.0,67538.0,0.000946]
[1718269527655,0.67877297,67539.0,67538.0,0.000946]
[1718269527856,0.89847297,67539.0,67538.0,0.000946]
[1718269528032,0.91247297,67539.0,67538.0,0.000946]
[1718269531505,0.91583279,67539.0,67538.0,0.000946]
[1718269532139,0.99407878,67539.0,67538.0,0.000946]
[1718269532567,1.06008507,67539.0,67538.0,0.000946]
[1718269533296,0.3625,67537.0,67536.0,0.000946]
[1718269533618,0.99881131,67537.0,67536.0,0.000946]
[1718269534442,0.3257,67535.0,67534.0,0.000946]
[1718269534664,0.86076605,67535.0,67529.0,0.000946]
[1718269534908,0.86076605,67535.0,67528.0,0.009405]
[1718269534909,0.3603,67529.0,67528.0,0.009405]
[1718269535113,0.68206605,67529.0,67528.0,0.009405]
[1718269535315,0.71791011,67529.0,67528.0,0.009405]
[1718269535674,0.17,67523.0,67514.0,0.009416]
[1718269535883,0.66538993,67523.0,67514.0,0.009416]
[1718269536053,0.96164298,67523.0,67514.0,0.009416]
[1718269536237,1.01492868,67523.0,67514.0,0.009416]
[1718269536435,0.17,67520.0,67514.0,0.009416]
[1718269536708,0.66985057,67520.0,67514.0,0.009416]
[1718269536952,0.87873403,67520.0,67514.0,0.009416]
[1718269537373,0.87873403,67520.0,67493.0,0.43295979]
[1718269537374,0.168,67506.0,67487.0,0.009416]
[1718269537573,0.54151993,67506.0,67494.0,0.43295979]
[1718269537742,0.72624192,67506.0,67487.0,0.009416]
[1718269537968,0.76207256,67506.0,67492.0,0.0811]
[1718269538178,0.35401647,67506.0,67496.0,0.0609]
[1718269538385,0.45635057,67506.0,67496.0,0.0609]
[1718269539176,0.47035057,67506.0,67487.0,0.009416]
[1718269539377,0.50635057,67506.0,67494.0,0.1433]
[1718269539835,0.52035057,67506.0,67494.0,0.1433]
[1718269540040,0.57738563,67506.0,67494.0,0.1433]
[1718269540454,0.50635057,67506.0,67494.0,0.1433]
[1718269540840,0.52035057,67506.0,67494.0,0.1433]
[1718269541030,0.53435057,67506.0,67494.0,0.1433]
[1718269541228,0.52035057,67506.0,67494.0,0.1433]
[1718269541428,0.50635057,67506.0,67494.0,0.1433]
[1718269541633,0.52129362,67506.0,67494.0,0.1433]
[1718269541811,0.53529362,67506.0,67494.0,0.1433]
[1718269542428,0.45035057,67506.0,67494.0,0.1433]
[1718269542755,0.27115057,67506.0,67495.0,0.07215996]
[1718269542964,0.27115057,67506.0,67505.0,0.152516]
[1718269543172,0.28515057,67506.0,67505.0,0.152516]
[1718269543816,0.27115057,67506.0,67505.0,0.152516]
[1718269544018,0.25715057,67506.0,67505.0,0.152516]
[1718269544240,0.29886563,67506.0,67505.0,0.009416]
[1718269544447,0.33286563,67506.0,67505.0,0.009416]
[1718269544654,0.31886563,67506.0,67505.0,0.009416]
[1718269544855,0.30486563,67506.0,67505.0,0.009416]
[1718269545297,0.33286563,67506.0,67505.0,0.009416]
[1718269545514,0.31886563,67506.0,67505.0,0.009416]
[1718269546144,0.33286563,67506.0,67505.0,0.009416]
[1718269546355,0.31286563,67506.0,67505.0,0.009416]
[1718269546566,0.27115057,67506.0,67505.0,0.009416]
[1718269546989,0.28515057,67506.0,67505.0,0.009416]
[1718269547492,0.27115057,67506.0,67505.0,0.009416]
[1718269548161,0.27115057,67506.0,67505.0,0.147316]
[1718269548601,0.04083064,67506.0,67505.0,0.147316]
[1718269548820,0.02683064,67506.0,67505.0,0.167256]
[1718269549040,0.05926,67528.0,67513.0,0.0811]
[1718269549257,0.05926,67528.0,67519.0,0.1456]
[1718269549258,0.43295979,67524.0,67519.0,0.1456]
[1718269549432,0.01221924,67527.0,67519.0,0.1456]
[1718269549685,0.01223448,67523.0,67519.0,0.1456]
[1718269549889,0.05926,67528.0,67519.0,0.1456]
[1718269550100,0.05926,67528.0,67520.0,0.07215996]
[1718269550309,0.05926,67528.0,67522.0,0.0645]
[1718269550521,0.05926,67528.0,67523.0,0.0811]
[1718269550735,0.05926,67528.0,67524.0,0.0645]
[1718269551148,0.01799636,67547.0,67524.0,0.08444]
[1718269551370,0.20356393,67547.0,67529.0,0.1443]
[1718269551573,0.01226004,67546.0,67529.0,0.1443]
[1718269551775,0.15657997,67546.0,67529.0,0.1443]
[1718269553268,0.15657997,67546.0,67531.0,0.1377]
[1718269553269,0.01226004,67546.0,67531.0,0.1377]
[1718269553486,0.014,67546.0,67532.0,0.0661]
[1718269554160,0.01226004,67545.0,67532.0,0.0661]
[1718269554383,0.01226004,67545.0,67532.0,0.08604]
[1718269554594,0.01226004,67545.0,67532.0,0.0661]
[1718269555458,0.014,67546.0,67532.0,0.0661]
[1718269555733,0.01232298,67544.0,67532.0,0.0661]
[1718269555950,0.060098,67552.0,67532.0,0.0661]
[1718269555951,0.17064291,67545.0,67532.0,0.0661]
[1718269556153,0.02,67543.0,67532.0,0.0661]
[1718269556559,0.02,67543.0,67532.0,0.0671]
[1718269556765,0.01232298,67542.0,67532.0,0.0671]
[1718269557209,0.02,67541.0,67532.0,0.0661]
[1718269557631,0.14431993,67545.0,67532.0,0.0671]
[1718269557632,0.03235693,67540.0,67532.0,0.0671]
[1718269557845,0.01235693,67540.0,67532.0,0.0671]
[1718269558291,0.033,67543.0,67532.0,0.0671]
[1718269558509,0.01235503,67539.0,67532.0,0.0661]
[1718269558737,0.16431993,67543.0,67532.0,0.0661]
[1718269558927,0.01235503,67538.0,67532.0,0.0661]
[1718269559071,0.16431993,67543.0,67532.0,0.0661]
[1718269559308,0.01235503,67542.0,67532.0,0.0661]
[1718269560342,0.013,67541.0,67533.0,0.07215996]
[1718269560587,0.013,67541.0,67534.0,0.141]
[1718269560715,0.014,67543.0,67534.0,0.141]
[1718269561141,0.013,67542.0,67534.0,0.141]
[1718269561771,0.01235486,67541.0,67534.0,0.141]
[1718269562223,0.1,67549.0,67534.0,0.141]
[1718269562628,0.02,67547.0,67534.0,0.141]
[1718269562835,0.014,67542.0,67534.0,0.141]
[1718269563040,0.1,67545.0,67534.0,0.141]
[1718269563252,0.24431993,67545.0,67534.0,0.141]
[1718269563474,0.014,67541.0,67534.0,0.142]
[1718269563910,0.01235486,67540.0,67534.0,0.141]
[1718269564334,0.01235486,67540.0,67534.0,0.142]
[1718269564554,0.01235486,67540.0,67535.0,0.01994]
[1718269565193,0.00086,67546.0,67535.0,0.01994]
[1718269565396,0.002,67540.0,67535.0,0.01994]
[1718269565866,0.004,67540.0,67535.0,0.01994]
[1718269566345,0.002,67540.0,67535.0,0.01994]
[1718269566565,0.01486,67546.0,67535.0,0.01994]
[1718269566770,0.01486,67546.0,67534.0,0.141]
[1718269566975,0.003,67540.0,67534.0,0.16094]
[1718269567209,0.003,67540.0,67534.0,0.141]
[1718269567426,0.01486,67546.0,67534.0,0.141]
[1718269567872,0.01235207,67545.0,67535.0,0.001]
[1718269568105,0.156672,67545.0,67535.0,0.001]
[1718269568315,0.156672,67545.0,67534.0,0.141]
[1718269568316,0.002,67540.0,67534.0,0.141]
[1718269568754,0.01235902,67539.0,67534.0,0.141]
[1718269569202,0.02,67543.0,67534.0,0.141]
[1718269569414,0.16431993,67543.0,67534.0,0.141]
[1718269569615,0.01235582,67542.0,67534.0,0.141]
[1718269569865,0.001,67540.0,67534.0,0.141]
[1718269570289,0.01235078,67539.0,67534.0,0.141]
[1718269570504,0.01235078,67539.0,67534.0,0.142]
[1718269571180,0.01235078,67539.0,67534.0,0.141]
[1718269571621,0.15831993,67543.0,67534.0,0.141]
[1718269571833,0.14431993,67543.0,67534.0,0.141]
[1718269572044,0.002,67540.0,67534.0,0.141]
[1718269572251,0.001,67539.0,67534.0,0.141]
[1718269572667,0.01235078,67538.0,67534.0,0.141]
[1718269573071,0.01234914,67537.0,67534.0,0.141]
[1718269573313,0.002,67540.0,67534.0,0.141]
[1718269573738,0.01234914,67539.0,67534.0,0.141]
[1718269573943,0.01234914,67539.0,67534.0,0.142]
[1718269574149,0.19131993,67543.0,67534.0,0.142]
[1718269574357,0.01234914,67538.0,67534.0,0.142]
[1718269574559,0.17831993,67543.0,67534.0,0.141]
[1718269574800,0.01234914,67537.0,67534.0,0.141]
[1718269575005,0.02,67539.0,67530.0,0.0768]
[1718269575221,0.01234914,67536.0,67530.0,0.0768]
[1718269575450,0.14431993,67542.0,67530.0,0.0768]
[1718269575662,0.01234914,67535.0,67530.0,0.0768]
[1718269575868,0.002,67538.0,67530.0,0.0768]
[1718269576283,0.01334914,67537.0,67530.0,0.0768]
[1718269576504,0.01234914,67537.0,67530.0,0.0768]
[1718269577808,0.02,67539.0,67530.0,0.0798]
[1718269578036,0.01234914,67536.0,67530.0,0.0798]
[1718269578247,0.02,67536.0,67530.0,0.0768]
[1718269578460,0.01233604,67535.0,67530.0,0.0768]
[1718269578682,0.01233604,67535.0,67530.0,0.0798]
[1718269579127,0.001,67537.0,67530.0,0.0768]
[1718269579406,0.02,67539.0,67530.0,0.0768]
[1718269579407,0.01233604,67534.0,67530.0,0.0768]
[1718269579625,0.02,67539.0,67530.0,0.0768]
[1718269579833,0.01233604,67533.0,67530.0,0.0768]
[1718269579957,0.02,67539.0,67530.0,0.0768]
[1718269580179,0.01233604,67532.0,67522.0,0.0772]
[1718269580384,0.014,67536.0,67523.0,0.35040028]
[1718269580588,0.01233604,67531.0,67530.0,0.001]
[1718269580759,0.14431993,67535.0,67530.0,0.001]
[1718269580997,0.01233604,67531.0,67522.0,0.0772]
[1718269581206,0.14431993,67535.0,67523.0,0.35040246]
[1718269581400,0.14431993,67535.0,67524.0,0.35040246]
[1718269581606,0.14431993,67535.0,67525.0,0.35040246]
[1718269581805,0.14431993,67535.0,67526.0,0.04329032]
[1718269582007,0.14431993,67535.0,67527.0,0.04329032]
[1718269582332,0.01233604,67534.0,67522.0,0.0822]
[1718269582534,0.01233604,67534.0,67523.0,0.3504054]
[1718269582707,0.14431993,67535.0,67524.0,0.3504054]
[1718269582908,0.14431993,67535.0,67525.0,0.3504054]
[1718269583230,0.14431993,67535.0,67522.0,0.0822]
[1718269583231,0.14431993,67535.0,67526.0,0.04329374]
[1718269583438,0.15831993,67535.0,67527.0,0.04329374]
[1718269583644,0.01233604,67534.0,67522.0,0.0772]
[1718269583839,0.01233604,67534.0,67523.0,0.35040605]
[1718269584040,0.01233604,67534.0,67527.0,0.001]
[1718269584250,0.17131993,67535.0,67527.0,0.001]
[1718269584459,0.01233604,67533.0,67522.0,0.0772]
[1718269584671,0.15831993,67535.0,67523.0,0.35040781]
[1718269584918,0.15831993,67535.0,67522.0,0.0772]
[1718269584919,0.01,67534.0,67524.0,0.35040781]
[1718269585126,0.02233604,67534.0,67525.0,0.35040781]
[1718269585332,0.02233604,67534.0,67526.0,0.04329639]
[1718269585544,0.01233604,67534.0,67527.0,0.04329639]
[1718269585758,0.01233604,67534.0,67522.0,0.0772]
[1718269585959,0.01233604,67534.0,67523.0,0.30711142]
[1718269586163,0.01233604,67534.0,67524.0,0.04329556]
[1718269586375,0.01233604,67534.0,67525.0,0.36711142]
[1718269586577,0.01233604,67534.0,67526.0,0.30711142]
[1718269586782,0.15831993,67535.0,67527.0,0.04329504]
[1718269586988,0.14431993,67535.0,67527.0,0.04329504]
[1718269587203,0.01233604,67534.0,67528.0,0.18489472]
[1718269587414,0.01233604,67534.0,67529.0,0.25649472]
[1718269587620,0.014,67535.0,67530.0,0.35037524]
[1718269587797,0.00086,67546.0,67531.0,0.35037524]
[1718269588000,0.00086,67546.0,67532.0,0.35037524]
[1718269588001,0.014,67535.0,67532.0,0.35037524]
[1718269588206,0.014,67535.0,67533.0,0.04329472]
[1718269588613,0.1,67544.0,67534.0,0.04329219]
[1718269588851,0.014,67534.0,67529.0,0.2132]
[1718269589077,0.014,67534.0,67530.0,0.35037028]
[1718269589333,0.014,67534.0,67531.0,0.35037028]
[1718269589548,0.014,67534.0,67531.0,0.04329235]
[1718269589757,0.014,67534.0,67532.0,0.04329235]
[1718269590200,0.014,67534.0,67533.0,0.04329235]
[1718269590575,0.014,67534.0,67533.0,0.04429235]
[1718269590805,0.013,67535.0,67533.0,0.04429235]
[1718269591019,0.1,67542.0,67534.0,0.04329235]
[1718269591231,0.014,67535.0,67529.0,0.1416]
[1718269591434,0.013,67534.0,67532.0,0.001]
[1718269591640,0.013,67534.0,67533.0,0.04328386]
[1718269591877,0.014,67534.0,67533.0,0.04328386]
[1718269592133,0.14431993,67541.0,67530.0,0.04328386]
[1718269592344,0.14431993,67541.0,67531.0,0.30707703]
[1718269592556,0.014,67535.0,67532.0,0.04328386]
[1718269592959,0.014,67535.0,67533.0,0.04328386]
[1718269592960,0.01235117,67534.0,67533.0,0.04328386]
[1718269593148,0.01235117,67534.0,67533.0,0.04329395]
[1718269593365,0.014,67535.0,67534.0,0.001]
[1718269593564,0.014,67535.0,67534.0,0.04429489]
[1718269593795,0.02635159,67535.0,67534.0,0.04429489]
[1718269594023,0.01235159,67535.0,67534.0,0.04329489]
[1718269594250,0.01235159,67535.0,67531.0,0.1413]
[1718269594251,0.013,67534.0,67533.0,0.001]
[1718269594476,0.027,67534.0,67533.0,0.04428988]
[1718269594675,0.013,67534.0,67533.0,0.04428988]
[1718269594833,0.00086,67535.0,67533.0,0.04328988]
[1718269595032,0.02786,67535.0,67534.0,0.001]
[1718269595271,0.01386,67535.0,67534.0,0.001]
[1718269597471,0.00186,67535.0,67531.0,0.1413]
[1718269597691,0.00186,67535.0,67532.0,0.30707609]
[1718269599042,0.00086,67535.0,67532.0,0.30707609]
[1718269599583,0.00086,67535.0,67531.0,0.1413]
[1718269600013,0.00086,67535.0,67534.0,0.22869996]
[1718269600488,0.00086,67535.0,67534.0,0.55215243]
[1718269601248,0.00086,67535.0,67534.0,0.6408331]
[1718269601687,0.00186,67535.0,67534.0,0.6408331]
[1718269601846,0.00186,67535.0,67534.0,0.78515303]
[1718269602044,0.00186,67535.0,67534.0,0.71047236]
[1718269602257,0.00186,67535.0,67534.0,0.79912744]
[1718269602456,0.00186,67535.0,67534.0,0.78512744]
[1718269602663,0.00086,67535.0,67534.0,0.78512744]
[1718269602903,0.00186,67535.0,67534.0,0.71047236]
[1718269603117,0.00186,67535.0,67534.0,0.81047236]
[1718269603332,0.00186,67535.0,67534.0,1.40347439]
[1718269603492,0.00186,67535.0,67534.0,1.33812728]
[1718269603694,0.00286,67535.0,67534.0,1.33812728]
[1718269603913,0.00086,67546.0,67545.0,0.16184]
[1718269604122,0.00086,67546.0,67545.0,0.48505993]
[1718269604292,0.00086,67546.0,67545.0,0.83642579]
[1718269604721,0.00086,67546.0,67545.0,0.83642415]
[1718269604920,0.00086,67546.0,67545.0,0.79213865]
[1718269605676,0.00186,67546.0,67545.0,0.80413865]
[1718269606931,0.00286,67546.0,67545.0,0.80413865]
[1718269609541,0.00286,67546.0,67545.0,0.90413865]
[1718269610201,0.00286,67546.0,67545.0,0.80413865]
[1718269610634,0.00286,67546.0,67545.0,0.90413865]
[1718269611736,0.00286,67546.0,67545.0,1.01336757]
[1718269612839,0.00286,67546.0,67545.0,0.91336757]
[1718269613056,0.00286,67546.0,67545.0,0.69673865]
[1718269613273,0.00286,67546.0,67545.0,0.80582336]
[1718269614328,0.00286,67546.0,67545.0,0.80588032]
[1718269615652,0.00286,67546.0,67545.0,0.80574526]
[1718269618547,0.00286,67546.0,67545.0,0.80569588]
[1718269618960,0.00286,67546.0,67545.0,0.71425588]
[1718269619140,0.00286,67546.0,67545.0,0.56993595]
[1718269619353,0.00286,67546.0,67545.0,0.49953595]
[1718269619553,0.00286,67546.0,67545.0,0.19245723]
[1718269619758,0.01524648,67546.0,67545.0,0.35671716]
[1718269619999,0.00286,67546.0,67545.0,0.35671716]
[1718269620140,0.00286,67546.0,67545.0,0.55210404]
[1718269620529,0.00286,67546.0,67545.0,0.3367143]
[1718269620772,0.00286,67546.0,67545.0,0.3566543]
[1718269623866,0.00286,67546.0,67545.0,0.3367143]
[1718269624074,0.00286,67546.0,67545.0,0.51164059]
[1718269624724,0.00286,67546.0,67545.0,0.36732066]
[1718269624937,0.00286,67546.0,67545.0,0.19239437]
[1718269625112,0.00286,67546.0,67545.0,0.19063343]
[1718269625297,0.01526704,67546.0,67545.0,0.19063343]
[1718269630234,0.01526704,67546.0,67545.0,0.36649506]
[1718269632053,0.01526704,67546.0,67545.0,0.35820915]
[1718269632268,0.01526704,67546.0,67545.0,0.35812954]
[1718269632494,0.01526704,67546.0,67545.0,0.17949611]
[1718269632714,0.01526704,67546.0,67545.0,0.28546885]
[1718269633764,0.01526704,67546.0,67545.0,0.28515818]
[1718269635807,0.01526704,67546.0,67545.0,0.51699818]
[1718269636032,0.01526704,67546.0,67545.0,0.59961811]
[1718269636256,0.00286,67546.0,67545.0,0.66131811]
[1718269636831,0.00286,67546.0,67545.0,0.55534537]
[1718269637035,0.00286,67546.0,67545.0,0.66150256]
[1718269637643,0.00286,67546.0,67545.0,0.47437712]
[1718269637807,0.00286,67546.0,67545.0,0.65630106]
[1718269638710,0.00286,67546.0,67545.0,0.63636106]
[1718269638920,0.00286,67546.0,67545.0,0.49204113]
[1718269639168,0.00286,67546.0,67545.0,0.35164113]
[1718269639831,0.01526405,67546.0,67545.0,0.35164113]
[1718269640056,0.00286,67546.0,67545.0,0.35164113]
[1718269640465,0.01526756,67546.0,67545.0,0.35164113]
[1718269640677,0.01526756,67546.0,67545.0,0.18965719]
[1718269642018,0.01526756,67546.0,67545.0,0.35396894]
[1718269644925,0.00286,67546.0,67545.0,0.35396894]
[1718269646682,0.00286,67546.0,67545.0,0.28246894]
[1718269650655,0.00286,67546.0,67545.0,0.28206524]
[1718269654965,0.00286,67546.0,67545.0,0.17631175]
[1718269655149,0.00286,67546.0,67545.0,0.28192246]
[1718269658389,0.01525959,67546.0,67545.0,0.28192246]
[1718269666669,0.01525959,67546.0,67545.0,0.42612246]
[1718269666905,0.00286,67546.0,67545.0,0.42612246]
[1718269667116,0.00286,67546.0,67545.0,0.49267803]
[1718269667336,0.00286,67546.0,67545.0,0.49248431]
[1718269667534,0.00286,67546.0,67545.0,0.50886677]
[1718269668209,0.00286,67546.0,67545.0,0.49248431]
[1718269668692,0.00286,67546.0,67545.0,0.42592874]
[1718269670708,0.00286,67546.0,67545.0,0.42592103]
[1718269672535,0.00286,67546.0,67545.0,0.4924766]
[1718269672804,0.00286,67546.0,67545.0,0.42592103]
[1718269673277,0.00286,67546.0,67545.0,0.4924766]
[1718269673525,0.00286,67546.0,67545.0,0.42592103]
[1718269673745,0.00286,67546.0,67545.0,0.4924766]
[1718269674153,0.00286,67546.0,67545.0,0.42592103]
[1718269674395,0.00286,67546.0,67545.0,0.4924766]
[1718269675425,0.00286,67546.0,67545.0,0.49250263]
[1718269676657,0.00286,67546.0,67545.0,0.49251716]
[1718269678240,0.00286,67546.0,67545.0,0.60576296]
[1718269678437,0.00286,67546.0,67545.0,0.69105723]
[1718269678665,0.00286,67546.0,67545.0,0.60228014]
[1718269679954,0.00286,67546.0,67545.0,0.60227849]
[1718269680776,0.00286,67546.0,67545.0,0.60283401]
[1718269681536,0.00286,67546.0,67545.0,0.7137951]
[1718269682154,0.00286,67546.0,67545.0,0.75910961]
[1718269682526,0.00286,67546.0,67545.0,0.60283401]
[1718269682854,0.00286,67546.0,67545.0,0.58289401]
[1718269683470,0.00286,67546.0,67545.0,0.67165526]
[1718269684056,0.00286,67546.0,67545.0,0.69159526]
[1718269684268,0.00286,67546.0,67545.0,0.69159467]
[1718269684471,0.00286,67546.0,67545.0,0.67165467]
[1718269686461,0.00286,67546.0,67545.0,0.69159467]
[1718269687337,0.00286,67546.0,67545.0,0.69158842]
[1718269687927,0.00286,67546.0,67545.0,0.81377759]
[1718269688143,0.00286,67546.0,67545.0,0.64814357]
[1718269689525,0.00286,67546.0,67545.0,0.74814357]
[1718269690516,0.00286,67546.0,67545.0,0.74913982]
[1718269690949,0.00286,67546.0,67545.0,0.64913982]
[1718269691938,0.00286,67546.0,67545.0,0.74913982]
[1718269692555,0.00286,67546.0,67545.0,0.58466249]
[1718269692781,0.00286,67546.0,67545.0,0.69856699]
[1718269693398,0.00286,67546.0,67545.0,0.59856699]
[1718269694023,0.00286,67546.0,67545.0,0.69856699]
[1718269694223,0.00286,67546.0,67545.0,0.59856699]
[1718269694588,0.00286,67546.0,67545.0,0.49174218]
[1718269694963,0.00286,67546.0,67545.0,0.59856374]
[1718269695333,0.00286,67546.0,67545.0,0.67006374]
[1718269695734,0.00286,67546.0,67545.0,0.77006374]
[1718269697265,0.00286,67546.0,67545.0,0.67006374]
[1718269697891,0.00286,67546.0,67545.0,0.67005587]
[1718269698364,0.00286,67546.0,67545.0,0.77005587]
[1718269699622,0.00286,67546.0,67545.0,0.7882192]
[1718269699747,0.00286,67546.0,67545.0,0.6882192]
[1718269699954,0.00286,67546.0,67545.0,0.68140551]
[1718269700136,0.00286,67546.0,67545.0,0.68683955]
[1718269701299,0.00286,67546.0,67545.0,0.66627972]
[1718269702493,0.00286,67546.0,67545.0,0.52637972]
[1718269702908,0.00286,67546.0,67545.0,0.45487972]
[1718269703102,0.00286,67546.0,67545.0,0.63713987]
[1718269703565,0.00286,67546.0,67545.0,0.61719987]
[1718269703766,0.14256,67546.0,67545.0,0.29360184]
[1718269704111,0.15401617,67546.0,67545.0,0.21078946]
[1718269704314,0.15401617,67546.0,67545.0,0.11743404]
[1718269704511,0.15401617,67546.0,67545.0,0.012]
[1718269704770,0.1394,67542.0,67536.0,0.0715]
[1718269704996,0.1394,67542.0,67537.0,0.12560382]
[1718269705152,0.1394,67542.0,67538.0,0.10513827]
[1718269705549,0.1394,67542.0,67539.0,0.10513827]
[1718269705752,0.1394,67542.0,67536.0,0.0715]
[1718269705753,0.1394,67542.0,67540.0,0.10513827]
[1718269705999,0.1394,67542.0,67541.0,0.10513827]
[1718269707211,0.1404,67542.0,67541.0,0.10513827]
[1718269707409,0.1414,67542.0,67541.0,0.10513827]
[1718269707699,0.15185617,67542.0,67541.0,0.10513827]
[1718269708466,0.15185617,67542.0,67541.0,0.11113827]
[1718269708467,0.15285617,67542.0,67541.0,0.11113827]
[1718269713461,0.15285617,67542.0,67541.0,0.006]
[1718269713909,0.22435617,67542.0,67541.0,0.006]
[1718269714163,0.24435617,67542.0,67541.0,0.006]
[1718269714382,0.3886761,67542.0,67541.0,0.006]
[1718269714598,0.4886761,67542.0,67541.0,0.006]
[1718269715100,0.5886761,67542.0,67541.0,0.006]